bitfinex/quotes_ETHUSD_20251009
["timestamp","ask_amount","ask_price","bid_price","bid_amount"]
[1760018435597,0.02880317,4339.8,4338.6,0.019416]
[1760018435826,0.1025,4340.2,4338.6,0.019416]
[1760018435827,0.02880051,4340.2,4338.7,0.73274063]
[1760018436128,0.15679255,4341.4,4338.8,0.4339]
[1760018436424,9.579,4342.1,4338.9,13.47409675]
[1760018436425,0.099,4342.1,4338.9,13.47409675]
[1760018436642,0.02878857,4342.0,4339.0,2.36799241]
[1760018436790,0.02878857,4342.0,4339.1,0.4339]
[1760018437132,0.02878857,4342.0,4341.6,2.3032972]
[1760018437305,0.02878857,4342.0,4341.5,2.30334636]
[1760018437622,0.02878923,4341.9,4340.7,2.395]
[1760018437833,8.88778205,4342.6,4340.7,2.395]
[1760018437834,14.17223422,4343.7,4340.9,2.30366974]
[1760018438128,0.0998,4343.3,4340.9,2.30366974]
[1760018438328,0.02877995,4343.3,4341.0,0.96122685]
[1760018438501,0.02877664,4343.8,4341.3,2.30345748]
[1760018438843,1.96,4343.7,4341.4,0.4339]
[1760018438994,2.30249633,4343.2,4341.9,2.30313814]
[1760018439207,2.30249633,4343.2,4341.1,0.4339]
[1760018439208,0.99333091,4343.1,4341.1,0.4339]
[1760018439533,0.99333091,4343.1,4340.5,0.2274]
[1760018439534,0.6336,4342.2,4340.5,2.395]
[1760018439839,2.30334444,4341.6,4340.1,2.051]
[1760018440037,0.30449189,4341.5,4340.1,4.446]
[1760018440240,0.62863139,4341.5,4340.1,5.12101035]
[1760018440445,2.30340758,4341.4,4340.1,7.93701035]
[1760018440607,2.30351055,4341.2,4339.3,0.4339]
[1760018440805,0.12779321,4341.3,4339.7,2.30429109]
[1760018440806,2.33236272,4341.1,4339.7,2.30429109]
[1760018441002,0.02879454,4341.1,4340.8,2.30367629]
[1760018441218,1.92,4342.1,4340.8,2.30367629]
[1760018441219,0.02878857,4342.0,4340.9,0.01408173]
[1760018441434,0.02878857,4342.0,4340.8,2.083]
[1760018441634,0.2757,4341.9,4340.3,3.325]
[1760018441836,0.6336,4341.7,4339.7,0.4339]
[1760018442011,0.02879122,4341.6,4339.8,2.60408781]
[1760018442211,0.02879122,4341.6,4339.3,2.30448]
[1760018442212,0.1144,4340.9,4340.2,0.1152]
[1760018442420,2.30372281,4340.8,4339.3,2.30451916]
[1760018442742,0.1152,4339.9,4339.1,0.1152]
[1760018442974,0.1152,4339.9,4339.2,2.30457227]
[1760018443273,0.1152,4339.9,4339.1,0.1152]
[1760018443430,0.1152,4339.9,4338.6,0.019416]
[1760018443431,0.1152,4339.1,4338.6,0.019416]
[1760018443638,0.6336,4339.7,4338.6,0.019416]
[1760018443639,0.1152,4338.9,4338.6,0.019416]
[1760018444059,0.6336,4339.7,4338.6,0.019416]
[1760018444060,0.1292098,4338.8,4338.6,0.019416]
[1760018444529,0.0288098,4338.8,4338.6,0.019416]
[1760018444862,0.02880781,4339.1,4338.6,0.019416]
[1760018445091,0.6336,4338.9,4338.6,0.019416]
[1760018445254,0.1292098,4338.8,4338.6,0.019416]
[1760018445430,0.0288098,4338.8,4338.6,0.019416]
[1760018445634,0.02880648,4339.3,4338.6,0.019416]
[1760018446386,2.68280715,4339.2,4338.6,0.019416]
[1760018446533,0.6336,4339.1,4338.6,0.019416]
[1760018446737,0.02880848,4339.0,4338.6,0.019416]
[1760018446948,0.6336,4339.3,4338.6,0.019416]
[1760018447136,0.02880715,4339.2,4338.6,0.019416]
[1760018447339,0.1004,4339.2,4338.6,0.019416]
[1760018447540,0.02880781,4339.1,4338.6,0.019416]
[1760018447789,0.02880383,4339.7,4338.6,0.019416]
[1760018447951,0.02880383,4339.7,4338.7,3.5365]
[1760018448272,0.1015,4340.9,4340.1,2.304052]
[1760018448472,0.02879653,4340.8,4339.5,2.30441295]
[1760018448680,0.02879653,4340.8,4339.6,2.396]
[1760018448881,0.1015,4341.5,4339.7,0.44759315]
[1760018449089,0.02879255,4341.4,4341.1,2.3035197]
[1760018449245,0.0287899,4341.8,4340.6,3.083]
[1760018449443,0.02878592,4342.4,4340.7,2.8555]
[1760018449764,0.02878592,4342.4,4340.8,5.965]
[1760018449938,0.02878592,4342.4,4340.9,0.4335]
[1760018450148,0.02878592,4342.4,4340.8,5.965]
[1760018450149,0.02878592,4342.4,4341.0,0.63985]
[1760018450488,0.02878393,4342.7,4341.3,2.30345748]
[1760018450686,0.1022,4342.6,4340.3,0.4335]
[1760018450859,11.87004834,4341.8,4338.6,0.019416]
[1760018451045,2.93689832,4341.6,4338.9,2.9985]
[1760018451251,0.6336,4341.1,4338.9,0.4335]
[1760018451478,0.6336,4340.9,4339.0,8.077]
[1760018451695,0.6336,4340.7,4338.6,0.019416]
[1760018451883,2.3040335,4340.3,4338.6,0.019416]
[1760018452189,0.6336,4340.1,4338.6,0.019416]
[1760018452388,0.02880184,4340.0,4338.6,0.019416]
[1760018452688,0.02880184,4340.0,4339.6,2.30431269]
[1760018452851,0.02879852,4340.5,4338.7,0.4335]
[1760018453057,0.02879852,4340.5,4338.8,0.3531916]
[1760018453264,0.48072445,4341.3,4339.1,2.30462538]
[1760018453572,0.80016742,4341.8,4340.1,2.30409184]
[1760018453573,0.50951435,4341.8,4340.1,2.30409184]
[1760018453901,0.02878592,4342.4,4340.4,2.30393512]
[1760018454107,0.37935017,4342.3,4340.5,6.20619073]
[1760018454402,0.48072445,4342.5,4342.4,2.30287398]
[1760018454561,0.80016742,4343.0,4340.5,8.16869073]
[1760018454562,0.48072445,4342.9,4342.8,2.30266187]
[1760018454762,0.02878062,4343.2,4342.2,2.396]
[1760018454986,1.10962665,4343.8,4342.3,0.44755966]
[1760018455193,0.1144,4343.6,4342.8,0.1144]
[1760018455500,0.1144,4343.9,4343.1,0.1144]
[1760018455670,0.02877333,4344.3,4343.2,2.396]
[1760018455864,0.60012556,4344.6,4344.5,2.30176084]
[1760018456060,0.48072445,4345.1,4344.5,0.4335]
[1760018456257,0.02876869,4345.0,4342.1,2.1434]
[1760018456490,0.1585,4345.8,4342.1,2.1434]
[1760018456491,0.1144,4344.6,4343.4,2.30234218]
[1760018456726,0.099,4344.7,4343.6,0.1144]
[1760018457009,0.099,4344.7,4341.4,2.30336825]
[1760018457010,0.1144,4344.0,4343.4,0.1144]
[1760018457157,0.1144,4344.0,4343.4,2.5104]
[1760018457559,0.1144,4344.4,4343.7,0.1144]
[1760018457885,0.72859492,4344.9,4342.6,2.75515215]
[1760018458194,0.6336,4344.5,4342.7,2.592]
[1760018458396,0.66237267,4344.4,4342.8,4.307]
[1760018458618,0.66237267,4344.4,4342.0,0.4524]
[1760018458777,0.66237267,4344.4,4342.2,3.607]
[1760018458778,0.6336,4344.1,4342.2,3.607]
[1760018458986,2.70422289,4344.0,4342.7,2.30269655]
[1760018459177,0.40219032,4344.0,4342.3,0.85834]
[1760018459396,0.02877532,4344.0,4342.4,4.725]
[1760018459760,0.02877532,4344.0,4343.1,2.302479]
[1760018460116,0.02877532,4344.0,4342.4,4.725]
[1760018460117,0.02877333,4344.3,4343.6,2.30222158]
[1760018460318,0.02877333,4344.3,4342.5,0.4524]
[1760018460610,0.02877068,4344.7,4342.5,0.4524]
[1760018460762,0.02877068,4344.7,4342.6,2.395]
[1760018460763,2.30219504,4343.7,4342.6,2.395]
[1760018460961,2.30234233,4343.5,4342.6,2.972]
[1760018461216,0.0287773,4343.7,4342.6,7.592]
[1760018461367,0.60012556,4344.4,4342.6,7.592]
[1760018461368,0.48054302,4344.5,4342.7,0.4524]
[1760018461568,0.60012556,4345.6,4342.7,2.75509115]
[1760018461823,0.02876538,4345.5,4342.8,1.50115263]
[1760018462025,0.60012556,4346.3,4343.4,2.395]
[1760018462239,0.80016742,4346.6,4342.9,10.0344]
[1760018462240,0.2573,4347.0,4342.9,10.0344]
[1760018462241,0.66128798,4346.8,4345.7,0.02876538]
[1760018462531,0.69036458,4353.3,4352.5,2.415]
[1760018462685,0.69036458,4353.3,4353.2,2.9307607]
[1760018463033,0.002,4358.4,4353.2,2.9307607]
[1760018463034,2.981,4355.9,4353.2,2.72855167]
[1760018463221,0.1052,4357.6,4353.2,2.72855167]
[1760018463222,2.981,4356.1,4353.3,2.395]
[1760018463422,2.395,4356.4,4356.0,2.83352517]
[1760018463641,9.7996,4357.2,4356.0,6.91566009]
[1760018463642,6.168,4356.3,4356.0,6.91566009]
[1760018463787,9.7018,4356.2,4353.2,0.80855167]
[1760018463983,9.7018,4356.2,4352.8,0.4524]
[1760018464187,9.7018,4356.2,4352.3,5.3067754]
[1760018464188,10.18279611,4356.1,4352.3,5.3067754]
[1760018464391,17.328233,4355.9,4352.3,5.3067754]
[1760018464609,12.39599611,4355.3,4352.3,0.68931526]
[1760018464815,1.92,4355.1,4351.2,0.4524]
[1760018465028,1.16428427,4355.0,4352.3,2.2976118]
[1760018465328,2.29715106,4353.3,4352.4,0.20915455]
[1760018465632,2.29715106,4353.3,4352.5,0.20915455]
[1760018465633,2.5536,4353.1,4352.5,0.20915455]
[1760018465805,2.5536,4353.1,4349.9,2.29888622]
[1760018465806,0.6336,4352.7,4352.6,0.20915455]
[1760018465991,0.48509149,4352.7,4349.8,0.4524]
[1760018466328,0.48509149,4352.7,4347.1,14.155995]
[1760018466329,0.6336,4351.4,4349.0,0.4524]
[1760018466493,0.1811,4352.6,4347.9,0.69002397]
[1760018466494,0.6336,4350.9,4348.4,0.4524]
[1760018466693,0.1811,4351.3,4348.5,0.23182261]
[1760018466937,0.082,4352.0,4348.7,2.29953779]
[1760018467146,2.5536,4351.9,4348.8,14.03577604]
[1760018467452,2.5536,4351.7,4348.8,0.4524]
[1760018467627,0.6336,4351.2,4348.8,0.4524]
[1760018467829,0.6336,4350.9,4349.4,2.29912794]
[1760018467996,0.1811,4351.1,4348.8,0.4524]
[1760018468192,2.475,4351.1,4348.8,0.6574]
[1760018468435,0.6336,4351.2,4350.3,2.29867454]
[1760018468633,3.602,4351.1,4348.9,2.393]
[1760018468832,2.5536,4350.7,4348.0,9.3047]
[1760018469049,0.6336,4350.9,4348.0,9.3047]
[1760018469260,0.37831,4351.0,4350.1,2.29877797]
[1760018469432,0.37831,4351.0,4348.1,0.4524]
[1760018469433,4.575,4350.8,4348.4,2.29969644]
[1760018469750,1.92,4350.3,4347.7,0.4524]
[1760018469949,0.6336,4350.1,4347.4,2.30022542]
[1760018470123,0.6336,4349.9,4347.5,1.62016254]
[1760018470324,0.27347,4350.0,4347.5,0.4524]
[1760018470581,0.6336,4350.1,4347.5,0.4524]
[1760018470582,2.392,4349.9,4347.5,0.4524]
[1760018470860,0.1811,4350.2,4347.5,0.4524]
[1760018470861,3.788,4350.2,4349.3,2.29916808]
[1760018471057,3.788,4350.2,4348.7,2.29952291]
[1760018471219,3.788,4350.2,4347.3,0.4524]
[1760018471220,0.6336,4350.1,4347.3,0.4524]
[1760018471545,6.0846,4350.0,4347.3,0.4524]
[1760018471750,2.29906721,4349.6,4348.3,2.29974285]
[1760018472051,0.6336,4349.8,4348.4,0.02299696]
[1760018472265,0.6336,4349.6,4348.4,0.02299696]
[1760018472443,0.6336,4349.6,4348.1,2.75223986]
[1760018472626,0.6336,4349.6,4347.4,0.41354]
[1760018472627,2.5536,4349.6,4347.4,0.41354]
[1760018472830,0.6336,4348.9,4346.9,2.392]
[1760018473027,0.6336,4348.7,4347.0,0.02300437]
[1760018473248,0.6336,4348.7,4347.5,2.30017248]
[1760018473427,0.6336,4349.4,4347.6,0.02300119]
[1760018473628,2.831,4349.3,4347.3,0.4524]
[1760018473949,9.38513,4349.3,4348.5,2.29959502]
[1760018474153,9.38513,4349.3,4347.3,0.4524]
[1760018474154,7.3276,4349.2,4347.3,0.4524]
[1760018474324,9.7196,4349.2,4347.4,2.30022542]
[1760018474647,0.6336,4349.0,4346.7,2.8444]
[1760018474856,0.6336,4348.8,4348.0,2.2998673]
[1760018475027,0.96809424,4348.9,4346.8,2.80358292]
[1760018475028,0.96809424,4348.9,4346.9,2.30049]
[1760018475234,2.5536,4349.2,4348.4,2.29966419]
[1760018475564,0.1807,4349.9,4347.5,2.75254389]
[1760018475720,8.102,4349.2,4347.5,0.4524]
[1760018476056,8.102,4349.2,4347.6,2.3001196]
[1760018476262,0.6336,4349.1,4346.6,2.30061625]
[1760018476449,2.93304469,4348.9,4346.9,0.4524]
[1760018476622,0.6336,4348.9,4346.9,0.4524]
[1760018476960,0.6336,4348.7,4346.2,0.6701]
[1760018477272,0.1807,4348.8,4346.2,0.6701]
[1760018477273,0.6336,4348.3,4346.2,0.4524]
[1760018477563,0.1807,4348.6,4346.4,2.30075464]
[1760018477767,5.953,4348.2,4347.4,2.30022479]
[1760018478065,0.6336,4347.7,4345.5,0.4524]
[1760018478265,0.6336,4347.7,4344.0,4.5237]
[1760018478266,0.6336,4347.1,4344.7,2.30165488]
[1760018478468,0.6336,4347.1,4345.7,0.1144]
[1760018478469,0.6336,4346.9,4345.7,0.1144]
[1760018478679,0.1144,4346.4,4345.7,0.1144]
[1760018478828,0.1144,4346.4,4346.1,2.30086104]
[1760018479025,0.1144,4346.4,4345.7,2.41550998]
[1760018479356,0.1144,4346.4,4346.2,2.30081492]
[1760018479521,0.1144,4346.4,4345.7,0.1144]
[1760018479721,0.6336,4346.2,4344.7,2.392]
[1760018479963,0.1144,4345.7,4345.2,2.30138773]
[1760018480165,0.1144,4345.7,4345.0,0.1144]
[1760018480325,0.1144,4345.7,4345.0,0.13741495]
[1760018480660,0.1144,4345.7,4345.6,2.3011782]
[1760018480866,0.169,4348.0,4345.6,2.3011782]
[1760018481067,0.1144,4346.2,4346.1,2.30086982]
[1760018481365,0.1144,4346.2,4345.5,0.1144]
[1760018481762,0.1144,4346.2,4345.7,2.30112525]
[1760018481934,0.6336,4347.3,4346.0,2.30091759]
[1760018481935,0.1144,4346.5,4346.0,2.30091759]
[1760018482134,0.1144,4346.5,4345.9,2.30101935]
[1760018482329,0.1144,4346.5,4345.8,0.1144]
[1760018482636,0.1144,4346.5,4345.1,0.4524]
[1760018482637,0.1144,4346.2,4345.5,2.41561335]
[1760018482836,0.1144,4346.2,4345.6,2.30117614]
[1760018483058,0.1144,4346.2,4344.9,4.613]
[1760018483059,0.6336,4346.1,4344.1,0.4524]
[1760018483257,0.6336,4345.7,4343.6,0.2177]
[1760018483464,0.1144,4344.9,4344.8,2.30160191]
[1760018483773,0.1144,4344.9,4344.2,0.1144]
[1760018484080,2.392,4345.5,4343.5,0.4524]
[1760018484081,0.1144,4344.3,4343.6,0.1144]
[1760018484280,0.1144,4344.3,4343.9,2.30205496]
[1760018484572,0.1144,4344.3,4343.9,2.30207404]
[1760018484731,0.1144,4344.3,4343.7,2.54385001]
[1760018484934,2.30027833,4347.3,4343.7,0.24166725]
[1760018485128,0.6336,4346.4,4344.3,2.30182634]
[1760018485332,1.92,4347.1,4343.8,8.989]
[1760018485333,0.6336,4345.9,4344.4,0.02301813]
[1760018485548,2.5536,4345.9,4344.3,0.02301866]
[1760018485834,0.6336,4345.4,4343.8,8.989]
[1760018486073,0.6336,4345.4,4344.6,2.30168038]
[1760018486240,0.8532,4345.8,4343.7,0.4524]
[1760018486443,0.6336,4345.4,4342.9,0.47542608]
[1760018486689,0.3433,4346.1,4342.9,0.4524]
[1760018486962,0.6336,4346.0,4345.0,2.30144653]
[1760018487164,4.85455876,4346.1,4345.1,2.3014078]
[1760018487368,2.5536,4346.1,4344.2,2.995]
[1760018487666,0.6336,4345.7,4344.4,2.30176933]
[1760018487837,0.6336,4345.7,4344.5,0.0230176]
[1760018488237,0.6336,4345.4,4344.3,0.57493308]
[1760018488445,0.6336,4345.5,4344.4,0.02301813]
[1760018488775,0.6336,4345.8,4344.2,2.3019198]
[1760018488974,2.30113695,4345.7,4344.8,2.30159467]
[1760018489281,2.30113695,4345.7,4344.1,0.4349]
[1760018489282,0.6336,4345.7,4345.4,2.30125817]
[1760018489436,0.1283,4346.7,4345.5,2.30120564]
[1760018489635,2.5536,4346.4,4345.5,2.3012112]
[1760018489840,2.42890672,4346.7,4344.8,0.4349]
[1760018490172,0.6336,4346.3,4345.5,2.30118644]
[1760018490372,0.6336,4346.3,4344.3,0.2154]
[1760018490562,0.6336,4346.1,4344.4,2.393]
[1760018490765,0.6336,4346.1,4345.4,2.30123943]
[1760018490962,9.083,4346.3,4344.5,0.9003]
[1760018491267,0.6336,4346.0,4344.5,0.9003]
[1760018491476,0.6336,4346.0,4345.3,2.30128715]
[1760018491648,0.6336,4346.1,4344.8,2.30160191]
[1760018491853,0.6336,4346.1,4344.9,0.46032568]
[1760018492053,0.6336,4346.1,4344.5,0.4349]
[1760018492054,2.30091346,4346.1,4344.5,0.4349]
[1760018492264,0.6336,4346.2,4343.6,1.92]
[1760018492265,0.1283,4346.0,4343.8,0.4349]
[1760018492575,0.6336,4345.8,4343.9,2.95702078]
[1760018492776,2.3009185,4346.1,4345.2,2.30134094]
[1760018492950,0.6336,4346.0,4344.3,0.2154]
[1760018493274,0.6336,4346.0,4345.5,2.30122949]
[1760018493473,0.6336,4346.0,4344.4,0.45791813]
[1760018493474,0.6336,4346.1,4344.4,0.4349]
[1760018493648,0.6336,4345.8,4344.4,2.393]
[1760018493853,0.6336,4345.6,4344.9,2.30154479]
[1760018494067,0.6336,4345.6,4343.7,2.3549]
[1760018494250,0.6336,4345.6,4343.7,0.4349]
[1760018494467,0.6336,4345.3,4343.8,2.482]
[1760018494777,5.739,4345.5,4343.8,0.52190784]
[1760018494954,5.739,4345.5,4342.8,2.30265502]
[1760018494955,0.1144,4344.2,4343.5,0.1144]
[1760018495151,0.1144,4344.2,4343.6,2.30218497]
[1760018495351,0.6336,4344.5,4342.4,0.4349]
[1760018495541,0.1291,4344.6,4343.1,0.1144]
[1760018495542,0.1144,4343.9,4343.1,0.1144]
[1760018495744,0.1144,4343.9,4343.3,2.30239456]
[1760018495947,0.1144,4343.9,4343.4,2.30232493]
[1760018496160,0.1144,4343.9,4343.3,2.774318]
[1760018496360,0.1144,4343.9,4343.3,0.47193473]
[1760018496556,0.6336,4343.9,4342.7,2.393]
[1760018496774,0.1144,4343.6,4342.9,0.1144]
[1760018497074,0.1144,4343.6,4343.3,2.3023894]
[1760018497242,0.1144,4343.6,4342.9,0.1144]
[1760018497442,0.1144,4343.6,4343.0,2.30254599]
[1760018497638,0.1144,4343.6,4343.1,2.56721758]
[1760018497871,0.1144,4343.6,4343.2,2.3024485]
[1760018498072,0.1144,4343.6,4343.1,0.26471962]
[1760018498260,0.1144,4343.6,4343.2,2.30244742]
[1760018498462,0.1144,4343.6,4343.0,0.02302555]
[1760018498978,1.92,4344.5,4341.4,0.2154]
[1760018498979,0.6336,4343.4,4341.4,0.2154]
[1760018499273,0.6336,4343.3,4341.2,2.30351055]
[1760018499442,0.1144,4342.5,4341.8,0.1144]
[1760018499640,0.6336,4343.3,4341.3,2.763]
[1760018499850,0.1144,4342.5,4341.8,0.1144]
[1760018500071,0.1144,4342.5,4341.9,0.02303139]
[1760018500574,0.479,4344.6,4342.0,0.4349]
[1760018500779,0.1144,4343.4,4343.3,2.30239679]
[1760018501083,2.873,4344.5,4343.9,2.30203324]
[1760018501281,2.30088687,4346.2,4343.3,0.48351086]
[1760018501282,2.30139812,4345.2,4344.2,2.30191554]
[1760018501572,0.3201,4345.5,4344.5,2.30175151]
[1760018501573,7.717,4345.4,4344.5,2.30175151]
[1760018501939,0.1144,4344.9,4344.3,0.02301866]
[1760018502178,0.1144,4344.9,4344.7,2.30164673]
[1760018502374,0.2207,4344.9,4344.1,0.1144]
[1760018502548,0.10445821,4344.8,4343.4,0.12]
[1760018502749,0.1144,4344.1,4343.4,0.1144]
[1760018502954,0.1144,4343.6,4342.9,0.1144]
[1760018503178,0.1144,4343.6,4343.2,2.30240533]
[1760018503495,0.1144,4343.6,4343.0,2.30251316]
[1760018503698,0.1144,4343.6,4342.9,0.1144]
[1760018503876,0.1136,4343.6,4343.5,2.30229077]
[1760018504076,0.1144,4343.9,4343.7,2.30214082]
[1760018504578,0.1144,4343.9,4343.3,2.30239679]
[1760018504879,0.1144,4343.9,4343.5,2.30227357]
[1760018505078,0.1144,4343.9,4343.5,0.2439697]
[1760018505263,0.1144,4343.9,4343.6,2.30223777]
[1760018505464,0.1144,4345.5,4344.4,2.30179548]
[1760018505765,0.1067,4345.4,4343.5,0.2439697]
[1760018505965,0.1067,4345.3,4343.2,0.1144]
[1760018506166,0.6336,4344.4,4342.4,0.4318]
[1760018506374,0.1144,4343.4,4342.7,0.1144]
[1760018506693,0.1144,4343.4,4342.8,0.02302661]
[1760018506866,0.1144,4344.5,4343.3,0.1144]
[1760018507199,0.1144,4344.7,4343.4,0.45482343]
[1760018507401,0.2149,4345.8,4344.2,2.41627397]
[1760018507402,0.1144,4345.0,4344.2,2.41627397]
[1760018507598,0.1144,4345.0,4344.3,2.32488191]
[1760018507765,0.1144,4345.0,4344.3,0.02301866]
[1760018507966,2.30181064,4344.5,4343.4,2.302338]
[1760018508182,0.1144,4344.3,4343.6,2.41663609]
[1760018508506,0.1144,4344.3,4343.7,0.02302184]
[1760018508686,0.6336,4345.0,4343.7,0.02302184]
[1760018508687,0.1144,4344.7,4344.0,0.1144]
[1760018509565,0.1144,4344.7,4343.6,1.4698]
[1760018509566,2.30183191,4344.4,4343.6,3.903]
[1760018509869,0.1144,4344.5,4343.7,2.5084]
[1760018510062,2.41620238,4344.5,4343.8,0.64114]
[1760018510294,0.1144,4344.5,4343.8,0.64114]
[1760018510602,0.1144,4344.5,4343.9,0.02302078]
[1760018510897,0.1144,4344.9,4344.1,0.1144]
[1760018511097,0.1144,4344.9,4344.1,2.41632692]
[1760018511269,0.1144,4344.9,4344.2,0.02301919]
[1760018511465,2.41599779,4344.9,4344.2,0.02301919]
[1760018511665,2.3013403,4345.3,4344.4,0.1144]
[1760018511860,0.1144,4345.2,4344.5,0.25371629]
[1760018512504,0.1144,4345.6,4344.9,0.1144]
[1760018512665,0.1144,4345.6,4345.0,0.02301495]
[1760018512866,0.1144,4346.1,4345.4,0.1144]
[1760018513069,0.1144,4346.1,4345.5,0.02301231]
[1760018513271,0.3217,4347.6,4345.5,6.74768598]
[1760018513627,0.1144,4346.6,4346.0,2.30096617]
[1760018513912,2.30043018,4347.1,4346.3,2.30076832]
[1760018514111,0.1144,4347.0,4346.3,2.41516832]
[1760018514332,2.5048,4348.4,4346.4,7.95132437]
[1760018514474,0.1144,4348.3,4347.6,0.1144]
[1760018514673,1.758,4348.9,4347.1,2.906]
[1760018514674,2.29998576,4347.9,4347.1,2.906]
[1760018514907,2.29991671,4348.0,4347.4,0.1144]
[1760018515512,0.1144,4348.1,4347.4,0.1144]
[1760018515714,2.29932629,4349.1,4347.8,2.29997093]
[1760018515880,0.1144,4348.8,4348.0,0.1144]
[1760018516079,0.1144,4348.8,4348.0,2.8894]
[1760018516279,0.1144,4348.8,4348.2,2.29979696]
[1760018516588,0.1144,4348.8,4347.3,2.30027354]
[1760018516589,1.92,4348.6,4347.0,6.684]
[1760018516791,2.29994588,4348.0,4347.1,9.077]
[1760018516971,2.30017326,4347.5,4346.4,0.4318]
[1760018517171,0.6336,4348.0,4346.5,5.425]
[1760018517598,0.6336,4348.0,4345.9,0.4318]
[1760018517599,2.30057768,4346.8,4345.9,0.4318]
[1760018517799,2.30057768,4346.8,4345.5,0.24387367]
[1760018517800,2.3004811,4347.0,4346.0,2.393]
[1760018517998,0.6336,4347.4,4345.6,0.4531]
[1760018518303,2.30069424,4346.6,4345.7,2.3011185]
[1760018518506,2.43700833,4347.3,4345.6,0.4531]
[1760018518507,2.30079137,4346.4,4345.6,0.4531]
[1760018518822,0.1001,4347.1,4345.6,2.964]
[1760018519123,0.1001,4347.1,4345.0,0.4531]
[1760018519124,0.6336,4347.0,4345.0,0.4531]
[1760018519274,0.6336,4347.0,4345.5,5.464]
[1760018519606,0.6336,4347.6,4345.6,1.22962566]
[1760018519781,1.92,4347.3,4345.2,0.4531]
[1760018519984,2.30100163,4346.0,4345.2,2.949]
[1760018520190,2.30054292,4346.8,4344.7,0.4531]
[1760018520391,2.30102367,4345.9,4344.8,2.698]
[1760018520585,0.6336,4346.6,4344.7,0.4531]
[1760018520784,0.6336,4346.1,4344.2,2.498]
[1760018520985,2.9345575,4346.1,4344.6,2.30168474]
[1760018521176,1.92,4345.7,4342.4,0.001]
[1760018521376,0.6336,4345.5,4343.4,0.4531]
[1760018521581,0.6336,4345.2,4343.4,0.4531]
[1760018521882,0.6336,4345.2,4343.5,2.6210229]
[1760018522071,0.6336,4345.0,4343.6,0.76061229]
[1760018522272,0.1024,4345.3,4343.0,0.4531]
[1760018522476,2.30201743,4344.1,4343.3,2.394]
[1760018522708,0.6336,4344.5,4343.3,0.001]
[1760018523019,1.92,4344.8,4343.3,0.001]
[1760018523020,0.6336,4344.7,4343.3,0.001]
[1760018523183,2.30228056,4343.6,4343.3,0.001]
[1760018523523,0.46495513,4345.6,4343.3,0.001]
[1760018523805,2.5536,4344.2,4343.3,0.001]
[1760018523987,0.6336,4344.2,4343.3,0.001]
[1760018524308,0.6336,4343.8,4343.3,0.001]
[1760018524512,2.30219623,4343.7,4343.3,0.001]
[1760018524718,2.93567887,4343.9,4343.3,0.001]
[1760018524905,0.6336,4343.9,4343.3,0.001]
[1760018525074,4.60373362,4344.3,4343.3,0.001]
[1760018525278,0.1023,4344.1,4343.3,0.001]
[1760018525515,2.30234378,4343.4,4343.3,0.001]
[1760018525990,2.93589613,4343.5,4343.3,0.001]
[1760018526379,0.6336,4343.5,4343.3,0.001]
[1760018526579,0.6336,4343.9,4343.3,0.001]
[1760018526877,0.1144,4344.1,4343.4,0.1144]
[1760018527080,0.1136,4344.1,4344.0,2.30202578]
[1760018527281,0.1136,4344.1,4343.3,2.30334694]
[1760018527282,0.6336,4344.0,4343.3,0.001]
[1760018527509,0.6336,4343.8,4343.3,0.001]
[1760018527703,2.30218477,4343.7,4343.3,0.001]
[1760018528007,1.92,4344.3,4343.3,0.001]
[1760018528213,2.301862,4344.4,4343.4,0.4531]
[1760018528401,0.6336,4344.3,4343.7,2.30216694]
[1760018528802,2.40395402,4344.8,4343.8,0.02302131]
[1760018528803,0.1023,4344.8,4343.8,0.02302131]
[1760018529111,2.30180621,4344.5,4343.5,0.0230229]
[1760018529323,2.30180621,4344.5,4343.7,2.3021372]
[1760018529816,0.6336,4344.6,4343.8,0.02302131]
[1760018529981,0.6336,4344.6,4343.5,0.02302149]
[1760018530181,2.30128588,4345.4,4343.5,0.02302149]
[1760018530182,2.30138563,4345.3,4343.5,0.02302149]
[1760018530381,2.30138563,4345.3,4343.4,0.98411]
[1760018530382,0.1023,4345.4,4343.4,0.98411]
[1760018530592,2.30168088,4344.7,4343.6,0.681]
[1760018530797,2.2338,4346.1,4344.7,2.30162958]
[1760018531087,2.30046832,4347.0,4343.9,2.30203505]
[1760018531088,2.30077193,4346.4,4345.6,2.30116883]
[1760018531292,2.30081898,4346.3,4345.4,2.30124302]
[1760018531518,2.30070038,4346.6,4345.7,2.30110122]
[1760018531818,2.394,4347.0,4346.2,2.30081988]
[1760018531819,4.6944839,4347.0,4346.2,2.30081988]
[1760018531978,2.394,4347.0,4346.0,0.02300966]
[1760018532178,2.394,4347.0,4345.4,2.427]
[1760018532413,2.394,4347.0,4345.5,0.5181432]
[1760018532627,2.493,4347.0,4344.7,0.4531]
[1760018532827,2.493,4347.0,4344.0,0.4531]
[1760018532828,0.099,4346.9,4344.0,0.4531]
[1760018532992,2.30132774,4345.4,4344.1,0.2203]
[1760018533210,2.30133424,4345.4,4344.1,0.2203]
[1760018533414,2.30133424,4345.4,4344.6,2.30170395]
[1760018533738,2.30083885,4346.3,4345.4,2.30124326]
[1760018533942,2.30074209,4346.5,4345.0,2.394]
[1760018534251,2.394,4347.6,4346.2,2.30084563]
[1760018534458,0.099,4347.8,4346.3,0.02300807]
[1760018534602,2.493,4348.3,4347.8,2.30000672]
[1760018534802,2.493,4348.3,4346.2,2.30086052]
[1760018534803,2.394,4347.9,4344.9,0.27718464]
[1760018535040,2.394,4346.9,4342.4,0.4541]
[1760018535250,0.6336,4346.5,4343.0,0.4531]
[1760018535559,0.6336,4344.6,4342.4,0.001]
[1760018535702,0.6336,4344.4,4342.4,0.4541]
[1760018535903,0.6336,4343.8,4342.4,0.001]
[1760018536304,4.95478477,4343.7,4342.4,0.001]